fUST/lending_fUST_20250907
["ID","MTS","AMOUNT","RATE_DAILY","PERIOD"]
[384119492,1757257839635,-1523.31,0.00013698,2]
[384119494,1757257839645,-918.56,0.00013698,2]
[384119496,1757257839654,-151.0,0.00013698,2]
[384119498,1757257839665,-151.0,0.00013698,2]
[384119500,1757257839674,-151.0,0.00013698,2]
[384119502,1757257839683,-480.0,0.00013698,2]
[384119504,1757257839693,-3773.15,0.00013698,2]
[384119506,1757257839702,-480.0,0.00013698,2]
[384119508,1757257839712,-566.64,0.00013698,2]
[384119510,1757257839721,-1648.76,0.00013698,2]
[384119512,1757257839731,-514.16,0.00013698,2]
[384119514,1757257839741,-1958.59,0.00013698,2]
[384119516,1757257839751,-551.25,0.00013698,2]
[384119518,1757257839760,-480.0,0.00013698,2]
[384119520,1757257839770,-915.0,0.00013698,2]
[384119522,1757257839779,-480.0,0.00013698,2]
[384119524,1757257839789,-6649.55590852,0.00013698,2]
[384119576,1757257840803,-1865.65925509,0.00013698,2]
[384119577,1757257840820,-576.75296321,0.00013698,2]
[384119578,1757257840871,-374.33161482,0.00013698,2]
[384119579,1757257840888,-10751.0,0.00013698,2]
[384119822,1757257843977,-14049.24025836,0.00013698,2]
[384119824,1757257843990,-781.58,0.00013698,2]
[384119826,1757257844002,-480.0,0.00013698,2]
[384119828,1757257844014,-538.74,0.00013698,2]
[384119830,1757257844025,-480.0,0.00013698,2]
[384119832,1757257844037,-960.31,0.00013698,2]
[384119834,1757257844048,-824.86,0.00013698,2]
[384119837,1757257844060,-950.17,0.00013698,2]
[384119839,1757257844072,-1338.54,0.00013698,2]
[384119841,1757257844084,-480.0,0.00013698,2]
[384119843,1757257844095,-480.0,0.00013698,2]
[384119845,1757257844107,-480.0,0.00013698,2]
[384119847,1757257844119,-1834.05,0.00013698,2]
[384119849,1757257844130,-715.04,0.00013698,2]
[384119851,1757257844142,-480.0,0.00013698,2]
[384119853,1757257844154,-558.44,0.00013698,2]
[384119855,1757257844166,-2660.04,0.00013698,2]
[384119857,1757257844178,-6005.27,0.00013698,2]
[384119859,1757257844189,-480.0,0.00013698,2]
[384119861,1757257844201,-486.54,0.00013698,2]
[384119863,1757257844212,-2153.77,0.00013698,2]
[384119865,1757257844224,-778.19,0.00013698,2]
[384119867,1757257844235,-4530.83,0.00013698,2]
[384119869,1757257844247,-2672.5,0.00013698,2]
[384119871,1757257844258,-1060.79,0.00013698,2]
[384119873,1757257844270,-443.39357532,0.00013698,2]
[384119875,1757257844282,-666.71,0.00013698,2]
[384119877,1757257844293,-1186.4,0.00013698,2]
[384119879,1757257844303,-480.0,0.00013698,2]
[384119881,1757257844313,-1479.84,0.00013698,2]
[384119883,1757257844323,-480.0,0.00013698,2]
[384119885,1757257844333,-819.19,0.00013698,2]
[384119887,1757257844343,-2724.46,0.00013698,2]
[384119889,1757257844352,-225.74926341,0.00013698,2]
[384119903,1757257844497,-377.86073659,0.00013698,2]
[384119906,1757257844540,-480.0,0.00013698,2]
[384119908,1757257844552,-2152.28,0.00013698,2]
[384119910,1757257844561,-1978.24,0.00013698,2]
[384119911,1757257844571,-480.0,0.00013698,2]
[384119913,1757257844581,-986.97,0.00013698,2]
[384119915,1757257844590,-701.6,0.00013698,2]
[384119917,1757257844599,-3362.98,0.00013698,2]
[384119919,1757257844608,-480.0,0.00013698,2]
[384119921,1757257844618,-480.0,0.00013698,2]
[384119922,1757257844627,-531.66,0.00013698,2]
[384119924,1757257844637,-480.0,0.00013698,2]
[384119926,1757257844646,-555.42,0.00013698,2]
[384119928,1757257844656,-500.0,0.00013698,2]
[384119930,1757257844665,-874.687514,0.00013699,2]
[384119931,1757257844675,-182.851586,0.00013699,2]
[384119933,1757257844684,-168.0,0.00013725,2]
[384119935,1757257844694,-417.15472785,0.00013751,2]
[384119937,1757257844704,-160.0,0.00013751,2]
[384119939,1757257844714,-160.0,0.00013751,2]
[384119941,1757257844728,-846.64878038,0.00013751,2]
[384119943,1757257844737,-203.24090201,0.00013751,2]
[384119944,1757257844747,-217.60587337,0.00013751,2]
[384119946,1757257844756,-530.64473063,0.00013751,2]
[384119948,1757257844767,-233.01044003,0.00013751,2]
[384119950,1757257844776,-168.0,0.00013796,2]
[384119952,1757257844786,-401.61668058,0.00013872,2]
[384119954,1757257844796,-3346.34130769,0.00013887,2]
[384119956,1757257844808,-9646.87000601,0.00013887,2]
[384119958,1757257844818,-8318.1468265,0.00013917,2]
[384119960,1757257844827,-151.0,0.00013917,2]
[384119961,1757257844836,-188.09958044,0.00013942,2]
[384119963,1757257844845,-300.0,0.00013971,2]
[384119965,1757257844855,-300.0,0.00013971,2]
[384119967,1757257844864,-300.0,0.00013971,2]
[384119969,1757257844874,-300.0,0.00013971,2]
[384119970,1757257844883,-300.0,0.00013971,2]
[384119972,1757257844894,-300.0,0.00013971,2]
[384119974,1757257844903,-300.0,0.00013971,2]
[384119976,1757257844913,-300.0,0.00013971,2]
[384119978,1757257844923,-300.0,0.00013971,2]
[384119980,1757257844932,-300.0,0.00013971,2]
[384119981,1757257844941,-300.0,0.00013971,2]
[384119983,1757257844950,-300.0,0.00013971,2]
[384119985,1757257844959,-300.0,0.00013971,2]
[384119987,1757257844968,-300.0,0.00013971,2]
[384119989,1757257844977,-300.0,0.00013971,2]
[384119990,1757257844987,-600.0,0.00013971,2]
[384119992,1757257844996,-502.42736432,0.00013972,2]
[384119994,1757257845005,-657.77,0.00013972,2]
[384119996,1757257845014,-559.82,0.00013972,2]
[384119998,1757257845024,-630.37,0.00013972,2]
[384120000,1757257845033,-480.0,0.00013972,2]
[384120001,1757257845042,-480.0,0.00013972,2]
[384120003,1757257845051,-697.66,0.00013972,2]
[384120004,1757257845060,-480.0,0.00013972,2]
[384120006,1757257845069,-579.15659177,0.00013972,2]
[384120007,1757257845079,-480.0,0.00013972,2]
[384120009,1757257845089,-480.0,0.00013972,2]
[384120011,1757257845098,-738.28,0.00013972,2]
[384120012,1757257845108,-827.49,0.00013972,2]
[384120014,1757257845117,-480.0,0.00013972,2]
[384120016,1757257845126,-497.75503953,0.00013972,2]
[384120018,1757257845135,-480.0,0.00013972,2]
[384120020,1757257845144,-172.5448383,0.00013972,2]
[384120021,1757257845153,-480.0,0.00013972,2]
[384120023,1757257845163,-480.0,0.00013972,2]
[384120025,1757257845172,-648.26,0.00013972,2]
[384120027,1757257845181,-2637.44,0.00013972,2]
[384120029,1757257845190,-776.51,0.00013972,2]
[384120030,1757257845199,-480.0,0.00013972,2]
[384120032,1757257845208,-480.0,0.00013972,2]
[384120033,1757257845218,-847.58,0.00013972,2]
[384120035,1757257845227,-550.65,0.00013972,2]
[384120037,1757257845236,-480.0,0.00013972,2]
[384120039,1757257845245,-656.46,0.00013972,2]
[384120040,1757257845254,-480.0,0.00013972,2]
[384120042,1757257845264,-480.0,0.00013972,2]
[384120044,1757257845273,-480.0,0.00013972,2]
[384120046,1757257845283,-480.0,0.00013972,2]
[384120047,1757257845292,-436.01207418,0.00013972,2]
[384120173,1757257846710,-43.98792582,0.00013972,2]
[384120175,1757257846725,-552.45,0.00013972,2]
[384120177,1757257846735,-480.0,0.00013972,2]
[384120178,1757257846746,-480.0,0.00013972,2]
[384120180,1757257846755,-480.0,0.00013972,2]
[384120182,1757257846767,-480.0,0.00013972,2]
[384120184,1757257846777,-504.4,0.00013972,2]
[384120186,1757257846787,-553.81,0.00013972,2]
[384120188,1757257846797,-480.0,0.00013972,2]
[384120190,1757257846807,-932.07,0.00013972,2]
[384120191,1757257846816,-681.31,0.00013972,2]
[384120193,1757257846826,-655.83,0.00013972,2]
[384120195,1757257846836,-480.0,0.00013972,2]
[384120197,1757257846846,-1004.29,0.00013972,2]
[384120199,1757257846855,-173.4808698,0.00013972,2]
[384120201,1757257846867,-306.5191302,0.00013972,2]
[384120203,1757257846877,-480.0,0.00013972,2]
[384120205,1757257846887,-813.93,0.00013972,2]
[384120207,1757257846896,-488.85735433,0.00013972,2]
[384123501,1757258234466,22476.0,0.00028959,60]
[384123505,1757258283597,254.82934047,0.00013573,2]
[384123512,1757258314133,800.0,0.00013486,2]
[384123520,1757258381225,191.11229663,0.00013596,2]
[384123522,1757258408553,151.0,0.00013597,2]
[384123523,1757258409336,151.0,0.00013597,2]
[384123525,1757258414744,168.3888056,0.00013597,2]
[384123576,1757258613619,800.0,0.00013516,2]
[384123592,1757258650360,-300.0,0.00013597,2]
[384123617,1757258771749,-300.0,0.00013597,2]
[384123618,1757258771779,-267.74445372,0.00013598,2]
[384123629,1757258822733,300.0,0.00013597,2]
[384123633,1757258827618,267.74445371,0.00013598,2]
[384123649,1757258882560,300.0,0.00013597,2]
[384123659,1757258916802,58923.2968907,0.00013,2]
[384123660,1757258919584,100587.92007083,0.0002897,120]
[384123662,1757258925188,50000.0,0.000135,2]
[384123664,1757258942721,300.0,0.00013597,2]
[384123702,1757259003017,300.0,0.00013597,2]
[384123744,1757259031992,-20417.19187534,0.00013598,2]
[384123748,1757259032004,-58662.74914628,0.00013598,2]
[384123751,1757259032014,-269.39846217,0.00013666,2]
[384123753,1757259032023,-251.07370531,0.00013666,2]
[384123756,1757259032033,-50000.0,0.00013666,2]
[384123758,1757259032042,-84917.4067545,0.00013667,2]
[384123759,1757259032052,-500.0,0.00013673,2]
[384123760,1757259032061,-501.03122527,0.00013673,2]
[384123762,1757259032072,-500.0,0.00013673,2]
[384123764,1757259032081,-500.87044232,0.00013673,2]
[384123766,1757259032092,-355.58149535,0.00013673,2]
[384123768,1757259032101,-500.0,0.00013673,2]
[384123770,1757259032111,-500.0,0.00013673,2]
[384123772,1757259032120,-500.22444433,0.00013673,2]
[384123774,1757259032129,-500.0,0.00013673,2]
[384123776,1757259032138,-500.0,0.00013673,2]
[384123778,1757259032148,-500.82587803,0.00013673,2]
[384123780,1757259032157,-500.0,0.00013673,2]
[384123782,1757259032166,-500.0,0.00013673,2]
[384123783,1757259032176,-500.0,0.00013673,2]
[384123785,1757259032186,-500.0,0.00013673,2]
[384123787,1757259032195,-500.0,0.00013673,2]
[384123789,1757259032205,-500.0,0.00013673,2]
[384123791,1757259032214,-500.0,0.00013673,2]
[384123793,1757259032223,-500.0,0.00013673,2]
[384123795,1757259032233,-500.0,0.00013673,2]
[384123797,1757259032242,-500.0,0.00013673,2]
[384123799,1757259032252,-500.0,0.00013673,2]
[384123801,1757259032262,-574.18810144,0.00013673,2]
[384123803,1757259032272,-500.0,0.00013673,2]
[384123805,1757259032288,-500.0,0.00013673,2]
[384123807,1757259032298,-501.9381638,0.00013673,2]
[384123809,1757259032308,-500.0,0.00013673,2]
[384123812,1757259032319,-504.10830129,0.00013673,2]
[384123814,1757259032329,-503.27087676,0.00013673,2]
[384123815,1757259032339,-500.0,0.00013673,2]
[384123818,1757259032349,-500.0,0.00013673,2]
[384123819,1757259032361,-168.3888056,0.0001369,2]
[384123822,1757259032375,-480.0,0.00013698,2]
[384123823,1757259032384,-353.03417931,0.00013698,2]
[384123825,1757259032394,-480.0,0.00013698,2]
[384123827,1757259032405,-483.02386674,0.00013698,2]
[384123829,1757259032415,-480.0,0.00013698,2]
[384123831,1757259032425,-480.0,0.00013698,2]
[384123833,1757259032434,-483.11113682,0.00013698,2]
[384123835,1757259032446,-480.0,0.00013698,2]
[384123837,1757259032456,-480.0,0.00013698,2]
[384123838,1757259032469,-482.5213241,0.00013698,2]
[384123839,1757259032479,-480.0,0.00013698,2]
[384123840,1757259032488,-489.86967818,0.00013698,2]
[384123841,1757259032497,-480.0,0.00013698,2]
[384123842,1757259032507,-480.0,0.00013698,2]
[384123843,1757259032516,-480.0,0.00013698,2]
[384123844,1757259032525,-480.0,0.00013698,2]
[384123845,1757259032534,-480.0,0.00013698,2]
[384123846,1757259032543,-480.0,0.00013698,2]
[384123847,1757259032553,-483.3550606,0.00013698,2]
[384123848,1757259032561,-480.0,0.00013698,2]
[384123849,1757259032570,-480.0,0.00013698,2]
[384123850,1757259032580,-480.0,0.00013698,2]
[384123851,1757259032589,-480.0,0.00013698,2]
[384123852,1757259032598,-480.0,0.00013698,2]
[384123853,1757259032608,-480.0,0.00013698,2]
[384123854,1757259032617,-480.0,0.00013698,2]
[384123855,1757259032626,-480.0,0.00013698,2]
[384123856,1757259032635,-160.0,0.00013698,2]
[384123857,1757259032644,-480.0,0.00013698,2]
[384123858,1757259032653,-480.0,0.00013698,2]
[384123859,1757259032662,-480.0,0.00013698,2]
[384123860,1757259032672,-480.0,0.00013698,2]
[384123861,1757259032681,-439.04212494,0.00013698,2]
[384123862,1757259032691,-480.0,0.00013698,2]
[384123863,1757259032700,-480.0,0.00013698,2]
[384123864,1757259032709,-480.0,0.00013698,2]
[384123865,1757259032718,-480.0,0.00013698,2]
[384123866,1757259032727,-480.0,0.00013698,2]
[384123867,1757259032737,-480.0,0.00013698,2]
[384123868,1757259032746,-614.24,0.00013698,2]
[384123869,1757259032755,-480.0,0.00013698,2]
[384123870,1757259032764,-480.0,0.00013698,2]
[384123871,1757259032774,-480.0,0.00013698,2]
[384123872,1757259032783,-480.0,0.00013698,2]
[384123873,1757259032792,-482.90221377,0.00013698,2]
[384123874,1757259032801,-480.0,0.00013698,2]
[384123875,1757259032810,-480.0,0.00013698,2]
[384123876,1757259032819,-480.0,0.00013698,2]
[384123877,1757259032828,-480.0,0.00013698,2]
[384123878,1757259032838,-480.0,0.00013698,2]
[384123880,1757259032847,-480.0,0.00013698,2]
[384123882,1757259032857,-480.0,0.00013698,2]
[384123884,1757259032867,-480.0,0.00013698,2]
[384123886,1757259032877,-480.0,0.00013698,2]
[384123888,1757259032887,-480.0,0.00013698,2]
[384123890,1757259032897,-480.0,0.00013698,2]
[384123892,1757259032906,-480.0,0.00013698,2]
[384123894,1757259032916,-480.0,0.00013698,2]
[384123896,1757259032925,-480.0,0.00013698,2]
[384123898,1757259032936,-480.0,0.00013698,2]
[384123900,1757259032946,-480.0,0.00013698,2]
[384123902,1757259032955,-480.0,0.00013698,2]
[384123904,1757259032965,-481.17582482,0.00013698,2]
[384123907,1757259032978,-480.0,0.00013698,2]
[384123909,1757259032987,-480.0,0.00013698,2]
[384123911,1757259032997,-480.0,0.00013698,2]
[384123912,1757259033007,-480.0,0.00013698,2]
[384123914,1757259033017,-480.0,0.00013698,2]
[384123916,1757259033027,-480.0,0.00013698,2]
[384123919,1757259033036,-480.0,0.00013698,2]
[384123920,1757259033046,-480.0,0.00013698,2]
[384123923,1757259033057,-480.0,0.00013698,2]
[384123924,1757259033067,-480.0,0.00013698,2]
[384123926,1757259033077,-480.0,0.00013698,2]
[384123928,1757259033086,-480.0,0.00013698,2]
[384123930,1757259033096,-480.0,0.00013698,2]
[384123932,1757259033106,-480.0,0.00013698,2]
[384123934,1757259033116,-480.0,0.00013698,2]
[384123953,1757259033292,-480.0,0.00013698,2]
[384123955,1757259033303,-480.0,0.00013698,2]
[384123957,1757259033314,-480.0,0.00013698,2]
[384123959,1757259033326,-705.24,0.00013698,2]
[384123960,1757259033337,-480.0,0.00013698,2]
[384123962,1757259033347,-480.0,0.00013698,2]
[384123964,1757259033357,-480.0,0.00013698,2]
[384123966,1757259033368,-555.17,0.00013698,2]
[384123968,1757259033378,-506.69074386,0.00013698,2]
[384123970,1757259033388,-480.0,0.00013698,2]
[384123972,1757259033397,-480.0,0.00013698,2]
[384123974,1757259033407,-765.77,0.00013698,2]
[384123976,1757259033418,-480.0,0.00013698,2]
[384123978,1757259033428,-480.0,0.00013698,2]
[384123980,1757259033439,-480.0,0.00013698,2]
[384123982,1757259033449,-490.13952724,0.00013698,2]
[384123984,1757259033460,-483.39713193,0.00013698,2]
[384123986,1757259033470,-480.0,0.00013698,2]
[384123988,1757259033480,-480.0,0.00013698,2]
[384123990,1757259033489,-480.0,0.00013698,2]
[384123992,1757259033499,-480.0,0.00013698,2]
[384123994,1757259033509,-480.0,0.00013698,2]
[384123996,1757259033518,-480.0,0.00013698,2]
[384123998,1757259033527,-480.0,0.00013698,2]
[384124000,1757259033537,-480.0,0.00013698,2]
[384124002,1757259033548,-480.0,0.00013698,2]
[384124004,1757259033558,-480.0,0.00013698,2]
[384124006,1757259033568,-480.0,0.00013698,2]
[384124008,1757259033578,-480.0,0.00013698,2]
[384124010,1757259033588,-480.16,0.00013698,2]
[384124012,1757259033598,-480.0,0.00013698,2]
[384124014,1757259033609,-481.61529543,0.00013698,2]
[384124016,1757259033619,-480.0,0.00013698,2]
[384124018,1757259033628,-480.0,0.00013698,2]
[384124020,1757259033638,-480.0,0.00013698,2]
[384124022,1757259033648,-480.0,0.00013698,2]
[384124024,1757259033657,-480.0,0.00013698,2]
[384124026,1757259033667,-480.0,0.00013698,2]
[384124028,1757259033677,-480.0,0.00013698,2]
[384124030,1757259033686,-480.0,0.00013698,2]
[384124032,1757259033696,-480.32030878,0.00013698,2]
[384124034,1757259033705,-480.0,0.00013698,2]
[384124036,1757259033715,-480.93989399,0.00013698,2]
[384124037,1757259033725,-480.0,0.00013698,2]
[384124039,1757259033734,-796.95,0.00013698,2]
[384124041,1757259033744,-692.37,0.00013698,2]
[384124043,1757259033754,-480.0,0.00013698,2]
[384124045,1757259033764,-1161.38,0.00013698,2]
[384124047,1757259033774,-524.76,0.00013698,2]
[384124049,1757259033784,-480.0,0.00013698,2]
[384124051,1757259033794,-480.0,0.00013698,2]
[384124052,1757259033804,-532.28,0.00013698,2]
[384124054,1757259033815,-480.0,0.00013698,2]
[384124056,1757259033826,-483.09334443,0.00013698,2]
[384124058,1757259033836,-480.0,0.00013698,2]
[384124060,1757259033847,-480.0,0.00013698,2]
[384124062,1757259033857,-480.0,0.00013698,2]
[384124064,1757259033868,-480.0,0.00013698,2]
[384124066,1757259033877,-480.61044114,0.00013698,2]
[384124068,1757259033888,-480.0,0.00013698,2]
[384124070,1757259033898,-480.0,0.00013698,2]
[384124072,1757259033909,-480.0,0.00013698,2]
[384124074,1757259033922,-778.53,0.00013698,2]
[384124076,1757259033931,-480.0,0.00013698,2]
[384124078,1757259033943,-480.0,0.00013698,2]
[384124080,1757259033953,-480.0,0.00013698,2]
[384124082,1757259033963,-480.0,0.00013698,2]
[384124084,1757259033973,-480.0,0.00013698,2]
[384124086,1757259033983,-480.0,0.00013698,2]
[384124087,1757259033993,-480.0,0.00013698,2]
[384124089,1757259034003,-426.79235665,0.00013698,2]
[384124091,1757259034014,-480.0,0.00013698,2]
[384124093,1757259034024,-480.0,0.00013698,2]
[384124095,1757259034035,-480.0,0.00013698,2]
[384124097,1757259034045,-500.564487,0.00013698,2]
[384124099,1757259034055,-482.72625272,0.00013698,2]
[384124101,1757259034066,-480.0,0.00013698,2]
[384124103,1757259034076,-480.0,0.00013698,2]
[384124105,1757259034086,-480.0,0.00013698,2]
[384124107,1757259034097,-365.24023752,0.00013698,2]
[384124110,1757259034109,-480.0,0.00013698,2]
[384124112,1757259034120,-480.0,0.00013698,2]
[384124114,1757259034130,-500.0,0.00013698,2]
[384124116,1757259034140,-500.0,0.00013698,2]
[384124117,1757259034151,-500.0,0.00013698,2]
[384124119,1757259034161,-500.0,0.00013698,2]
[384124121,1757259034171,-500.0,0.00013698,2]
[384124122,1757259034182,-313.73449387,0.00013698,2]
[384124123,1757259034194,-480.0,0.00013698,2]
[384124124,1757259034204,-480.0,0.00013698,2]
[384124125,1757259034215,-480.0,0.00013698,2]
[384124126,1757259034226,-480.0,0.00013698,2]
[384124127,1757259034236,-480.0,0.00013698,2]
[384124128,1757259034247,-480.0,0.00013698,2]
[384124129,1757259034260,-480.0,0.00013698,2]
[384124130,1757259034270,-480.0,0.00013698,2]
[384124131,1757259034284,-480.0,0.00013698,2]
[384124132,1757259034294,-527.66,0.00013698,2]
[384124133,1757259034304,-480.0,0.00013698,2]
[384124134,1757259034314,-480.0,0.00013698,2]
[384124135,1757259034324,-480.0,0.00013698,2]
[384124136,1757259034334,-480.0,0.00013698,2]
[384124137,1757259034343,-480.0,0.00013698,2]
[384124138,1757259034353,-480.60593743,0.00013698,2]
[384124139,1757259034363,-480.0,0.00013698,2]
[384124140,1757259034373,-450.19778991,0.00013698,2]
[384124141,1757259034384,-2437.65,0.00013698,2]
[384124142,1757259034394,-578.00765926,0.00013698,2]
[384124143,1757259034405,-481.54685957,0.00013698,2]
[384124144,1757259034415,-480.0,0.00013698,2]
[384124145,1757259034424,-621.18,0.00013698,2]
[384124146,1757259034434,-482.36,0.00013698,2]
[384124147,1757259034445,-481.90278078,0.00013698,2]
[384124148,1757259034455,-480.0,0.00013698,2]
[384124149,1757259034465,-480.0,0.00013698,2]
[384124150,1757259034476,-480.0,0.00013698,2]
[384124151,1757259034487,-480.0,0.00013698,2]
[384124152,1757259034497,-480.0,0.00013698,2]
[384124153,1757259034507,-480.0,0.00013698,2]
[384124154,1757259034517,-480.0,0.00013698,2]
[384124155,1757259034527,-480.0,0.00013698,2]
[384124156,1757259034538,-480.0,0.00013698,2]
[384124157,1757259034547,-480.0,0.00013698,2]
[384124158,1757259034557,-480.0,0.00013698,2]
[384124159,1757259034567,-480.0,0.00013698,2]
[384124160,1757259034577,-480.0,0.00013698,2]
[384124161,1757259034587,-480.0,0.00013698,2]
[384124162,1757259034597,-621.75,0.00013698,2]
[384124163,1757259034606,-480.0,0.00013698,2]
[384124164,1757259034616,-480.0,0.00013698,2]
[384124165,1757259034626,-484.18419564,0.00013698,2]
[384124166,1757259034635,-874.4,0.00013698,2]
[384124167,1757259034645,-622.96,0.00013698,2]
[384124168,1757259034655,-480.0,0.00013698,2]
[384124169,1757259034664,-240.80847407,0.00013698,2]
[384124170,1757259034674,-2082.6,0.00013698,2]
[384124171,1757259034684,-480.0,0.00013698,2]
[384124172,1757259034693,-644.53,0.00013698,2]
[384124173,1757259034703,-480.0,0.00013698,2]
[384124174,1757259034713,-480.0,0.00013698,2]
[384124175,1757259034722,-480.0,0.00013698,2]
[384124176,1757259034732,-480.0,0.00013698,2]
[384124177,1757259034742,-480.0,0.00013698,2]
[384124178,1757259034751,-480.0,0.00013698,2]
[384124179,1757259034761,-533.16,0.00013698,2]
[384124180,1757259034771,-480.0,0.00013698,2]
[384124181,1757259034781,-480.0,0.00013698,2]
[384124182,1757259034791,-480.0,0.00013698,2]
[384124183,1757259034801,-480.0,0.00013698,2]
[384124184,1757259034811,-480.0,0.00013698,2]
[384124185,1757259034821,-480.0,0.00013698,2]
[384124186,1757259034830,-480.0,0.00013698,2]
[384124187,1757259034840,-480.0,0.00013698,2]
[384124188,1757259034849,-1036.6,0.00013698,2]
[384124189,1757259034859,-480.0,0.00013698,2]
[384124190,1757259034868,-7559.66137945,0.00013698,2]
[384124215,1757259037812,-316.45016377,0.00013664,2]
[384124217,1757259037822,-83.54983623,0.00013664,2]
[384124230,1757259037953,-74.58910524,0.00013664,2]
[384124232,1757259037963,-307.13317418,0.00013664,2]
[384124233,1757259037974,-500.0,0.00013664,2]
[384124234,1757259037984,-500.0,0.00013664,2]
[384124235,1757259037994,-621.29807892,0.00013664,2]
[384124236,1757259038003,-500.0,0.00013664,2]
[384124237,1757259038012,-500.0,0.00013664,2]
[384124238,1757259038022,-500.0,0.00013664,2]
[384124239,1757259038031,-500.0,0.00013664,2]
[384124240,1757259038042,-500.0,0.00013664,2]
[384124241,1757259038051,-500.0,0.00013664,2]
[384124242,1757259038061,-500.0,0.00013664,2]
[384124243,1757259038071,-500.0,0.00013664,2]
[384124244,1757259038081,-557.64809349,0.00013664,2]
[384124245,1757259038091,-500.0,0.00013664,2]
[384124246,1757259038101,-500.0,0.00013664,2]
[384124247,1757259038111,-500.0,0.00013664,2]
[384124248,1757259038121,-500.0,0.00013664,2]
[384124249,1757259038130,-500.0,0.00013664,2]
[384124250,1757259038139,-2864.46862055,0.00013698,2]
[384124252,1757259038149,-480.0,0.00013698,2]
[384124254,1757259038158,-480.0,0.00013698,2]
[384124255,1757259038167,-480.0,0.00013698,2]
[384124256,1757259038177,-480.0,0.00013698,2]
[384124258,1757259038187,-439.94586311,0.00013698,2]
[384124260,1757259038197,-1136.97,0.00013698,2]
[384124261,1757259038207,-480.0,0.00013698,2]
[384124263,1757259038216,-480.0,0.00013698,2]
[384124265,1757259038226,-597.84,0.00013698,2]
[384124267,1757259038236,-480.0,0.00013698,2]
[384124269,1757259038245,-480.0,0.00013698,2]
[384124271,1757259038255,-480.0,0.00013698,2]
[384124272,1757259038264,-746.1,0.00013698,2]
[384124274,1757259038275,-1418.18,0.00013698,2]
[384124276,1757259038287,-5786.49,0.00013698,2]
[384124278,1757259038297,-151.0,0.00013698,2]
[384124279,1757259038308,-151.0,0.00013698,2]
[384124281,1757259038317,-151.0,0.00013698,2]
[384124282,1757259038326,-151.0,0.00013698,2]
[384124283,1757259038336,-279.820868,0.00013698,2]
[384124284,1757259038346,-480.69208295,0.00013698,2]
[384124285,1757259038356,-480.0,0.00013698,2]
[384124286,1757259038367,-480.6499846,0.00013698,2]
[384124287,1757259038376,-480.0,0.00013698,2]
[384124288,1757259038385,-480.0,0.00013698,2]
[384124289,1757259038395,-480.0,0.00013698,2]
[384124290,1757259038404,-480.0,0.00013698,2]
[384124291,1757259038413,-161.18891538,0.00013698,2]
[384124292,1757259038423,-151.0,0.00013698,2]
[384124293,1757259038433,-163.836244,0.00013698,2]
[384124294,1757259038442,-480.0,0.00013698,2]
[384124295,1757259038452,-480.0,0.00013698,2]